fUST/lending_fUST_20260602
["ID","MTS","AMOUNT","RATE_DAILY","PERIOD"]
[423746417,1780375843000,-4590.1001,0.00013698,2]
[423746415,1780375843000,-4590.1001,0.00013698,2]
[423746410,1780375843000,-444.708,0.00013617,2]
[423746413,1780375843000,-500.0,0.00013698,2]
[423746405,1780375843000,-1937.27941927,0.00013598,2]
[423746411,1780375843000,-150.094,0.00013647,2]
[423746412,1780375843000,-150.148,0.00013647,2]
[423746409,1780375843000,-185.341,0.00013617,2]
[423746408,1780375843000,-2206.0,0.00013617,2]
[423746414,1780375843000,-4590.1001,0.00013698,2]
[423746469,1780375844000,-500.0,0.00013698,2]
[423746470,1780375844000,-501.35828524,0.00013698,2]
[423746468,1780375844000,-605.95104289,0.00013698,2]
[423746464,1780375844000,-500.0,0.00013698,2]
[423746463,1780375844000,-500.0,0.00013698,2]
[423746462,1780375844000,-500.0,0.00013698,2]
[423746460,1780375844000,-503.24533652,0.00013698,2]
[423746459,1780375844000,-503.70930187,0.00013698,2]
[423746451,1780375844000,-500.0,0.00013698,2]
[423746466,1780375844000,-506.15158541,0.00013698,2]
[423746453,1780375844000,-228.53226762,0.00013698,2]
[423746458,1780375844000,-500.74078734,0.00013698,2]
[423746461,1780375844000,-504.80778373,0.00013698,2]
[423746465,1780375844000,-210.58522455,0.00013698,2]
[423746474,1780375844000,-500.0,0.00013698,2]
[423746467,1780375844000,-500.0,0.00013698,2]
[423746472,1780375844000,-500.0,0.00013698,2]
[423746471,1780375844000,-500.0,0.00013698,2]
[423746455,1780375844000,-500.0,0.00013698,2]
[423746475,1780375844000,-509.59475033,0.00013698,2]
[423746476,1780375844000,-517.47175063,0.00013698,2]
[423746480,1780375844000,-504.59937695,0.00013698,2]
[423746479,1780375844000,-297.49614742,0.00013698,2]
[423746481,1780375844000,-532.19923919,0.00013698,2]
[423746483,1780375844000,-509.57209676,0.00013698,2]
[423746478,1780375844000,-509.33674224,0.00013698,2]
[423746482,1780375844000,-502.84203143,0.00013698,2]
[423746477,1780375844000,-502.83689888,0.00013698,2]
[423746484,1780375844000,-500.0,0.00013698,2]
[423746473,1780375844000,-506.07582975,0.00013698,2]
[423746456,1780375844000,-503.39485154,0.00013698,2]
[423746449,1780375844000,-501.35646314,0.00013698,2]
[423746457,1780375844000,-500.0,0.00013698,2]
[423746485,1780375844000,-500.60455701,0.00013698,2]
[423746419,1780375844000,-4590.1001,0.00013698,2]
[423746418,1780375844000,-4590.1001,0.00013698,2]
[423746420,1780375844000,-4590.1001,0.00013698,2]
[423746424,1780375844000,-500.0,0.00013698,2]
[423746422,1780375844000,-427.67172295,0.00013698,2]
[423746426,1780375844000,-501.69164195,0.00013698,2]
[423746423,1780375844000,-503.82739767,0.00013698,2]
[423746421,1780375844000,-4590.1001,0.00013698,2]
[423746427,1780375844000,-500.0,0.00013698,2]
[423746428,1780375844000,-501.54164263,0.00013698,2]
[423746425,1780375844000,-500.0,0.00013698,2]
[423746429,1780375844000,-500.0,0.00013698,2]
[423746430,1780375844000,-501.77202897,0.00013698,2]
[423746454,1780375844000,-500.0,0.00013698,2]
[423746431,1780375844000,-500.0,0.00013698,2]
[423746432,1780375844000,-431.79853472,0.00013698,2]
[423746442,1780375844000,-166.94554377,0.00013698,2]
[423746438,1780375844000,-1003.20731508,0.00013698,2]
[423746436,1780375844000,-503.06807638,0.00013698,2]
[423746443,1780375844000,-500.0,0.00013698,2]
[423746433,1780375844000,-503.59097007,0.00013698,2]
[423746435,1780375844000,-500.0,0.00013698,2]
[423746439,1780375844000,-500.0,0.00013698,2]
[423746437,1780375844000,-500.0,0.00013698,2]
[423746440,1780375844000,-502.11126123,0.00013698,2]
[423746444,1780375844000,-501.53317133,0.00013698,2]
[423746447,1780375844000,-506.7974226,0.00013698,2]
[423746450,1780375844000,-482.95194751,0.00013698,2]
[423746446,1780375844000,-500.0,0.00013698,2]
[423746434,1780375844000,-500.0,0.00013698,2]
[423746487,1780375844000,-501.04972316,0.00013698,2]
[423746452,1780375844000,-508.91012457,0.00013698,2]
[423746493,1780375844000,-500.0,0.00013698,2]
[423746522,1780375844000,-500.0,0.00013698,2]
[423746521,1780375844000,-500.0,0.00013698,2]
[423746523,1780375844000,-557.5,0.00013698,2]
[423746526,1780375844000,-2890.63,0.00013698,2]
[423746528,1780375844000,-500.0,0.00013698,2]
[423746527,1780375844000,-500.0,0.00013698,2]
[423746539,1780375844000,-501.06621447,0.00013698,2]
[423746538,1780375844000,-500.0,0.00013698,2]
[423746536,1780375844000,-500.0,0.00013698,2]
[423746531,1780375844000,-500.0,0.00013698,2]
[423746529,1780375844000,-503.09059857,0.00013698,2]
[423746530,1780375844000,-500.0,0.00013698,2]
[423746535,1780375844000,-500.0,0.00013698,2]
[423746533,1780375844000,-500.0,0.00013698,2]
[423746552,1780375844000,-500.0,0.00013698,2]
[423746534,1780375844000,-500.0,0.00013698,2]
[423746540,1780375844000,-510.80223177,0.00013698,2]
[423746541,1780375844000,-500.0,0.00013698,2]
[423746543,1780375844000,-500.0,0.00013698,2]
[423746545,1780375844000,-159.20166403,0.00013698,2]
[423746546,1780375844000,-633.23151823,0.00013698,2]
[423746544,1780375844000,-500.0,0.00013698,2]
[423746551,1780375844000,-500.0,0.00013698,2]
[423746548,1780375844000,-500.0,0.00013698,2]
[423746547,1780375844000,-500.0,0.00013698,2]
[423746550,1780375844000,-500.0,0.00013698,2]
[423746549,1780375844000,-500.70660243,0.00013698,2]
[423746553,1780375844000,-500.0,0.00013698,2]
[423746542,1780375844000,-500.0,0.00013698,2]
[423746495,1780375844000,-500.0,0.00013698,2]
[423746537,1780375844000,-515.30451475,0.00013698,2]
[423746516,1780375844000,-500.57213723,0.00013698,2]
[423746532,1780375844000,-500.0,0.00013698,2]
[423746515,1780375844000,-501.33544272,0.00013698,2]
[423746519,1780375844000,-500.0,0.00013698,2]
[423746497,1780375844000,-500.0,0.00013698,2]
[423746489,1780375844000,-516.1599621,0.00013698,2]
[423746486,1780375844000,-502.33852571,0.00013698,2]
[423746491,1780375844000,-508.09582587,0.00013698,2]
[423746496,1780375844000,-500.0,0.00013698,2]
[423746494,1780375844000,-505.94264947,0.00013698,2]
[423746488,1780375844000,-500.80050377,0.00013698,2]
[423746492,1780375844000,-500.0,0.00013698,2]
[423746498,1780375844000,-504.13631673,0.00013698,2]
[423746499,1780375844000,-501.92136307,0.00013698,2]
[423746501,1780375844000,-514.27768934,0.00013698,2]
[423746500,1780375844000,-500.0,0.00013698,2]
[423746511,1780375844000,-500.0,0.00013698,2]
[423746510,1780375844000,-500.0,0.00013698,2]
[423746490,1780375844000,-500.0,0.00013698,2]
[423746502,1780375844000,-500.0,0.00013698,2]
[423746520,1780375844000,-339.94114978,0.00013698,2]
[423746504,1780375844000,-502.7626882,0.00013698,2]
[423746518,1780375844000,-500.0,0.00013698,2]
[423746517,1780375844000,-500.0,0.00013698,2]
[423746525,1780375844000,-500.0,0.00013698,2]
[423746513,1780375844000,-500.0,0.00013698,2]
[423746514,1780375844000,-502.8529,0.00013698,2]
[423746512,1780375844000,-500.0,0.00013698,2]
[423746524,1780375844000,-500.0,0.00013698,2]
[423746508,1780375844000,-500.0,0.00013698,2]
[423746506,1780375844000,-500.0,0.00013698,2]
[423746507,1780375844000,-524.69,0.00013698,2]
[423746509,1780375844000,-500.0,0.00013698,2]
[423746505,1780375844000,-500.0,0.00013698,2]
[423746503,1780375844000,-500.0,0.00013698,2]
[423746577,1780375845000,-500.0,0.00013698,2]
[423746578,1780375845000,-500.0,0.00013698,2]
[423746565,1780375845000,-500.0,0.00013698,2]
[423746580,1780375845000,-500.0,0.00013698,2]
[423746579,1780375845000,-500.0,0.00013698,2]
[423746588,1780375845000,-500.0,0.00013698,2]
[423746568,1780375845000,-500.0,0.00013698,2]
[423746581,1780375845000,-500.61637627,0.00013698,2]
[423746589,1780375845000,-500.0,0.00013698,2]
[423746586,1780375845000,-229.93365884,0.00013698,2]
[423746587,1780375845000,-500.0,0.00013698,2]
[423746583,1780375845000,-501.00253929,0.00013698,2]
[423746585,1780375845000,-270.06634116,0.00013698,2]
[423746584,1780375845000,-500.0,0.00013698,2]
[423746566,1780375845000,-500.0,0.00013698,2]
[423746591,1780375845000,-500.0,0.00013698,2]
[423746582,1780375845000,-304.43493375,0.00013698,2]
[423746569,1780375845000,-500.9744681,0.00013698,2]
[423746556,1780375845000,-500.0,0.00013698,2]
[423746570,1780375845000,-500.0,0.00013698,2]
[423746592,1780375845000,-35.75389125,0.00013698,2]
[423746555,1780375845000,-629.29881819,0.00013698,2]
[423746560,1780375845000,-3337.5,0.00013698,2]
[423746561,1780375845000,-500.0,0.00013698,2]
[423746554,1780375845000,-500.0,0.00013698,2]
[423746558,1780375845000,-500.0,0.00013698,2]
[423746557,1780375845000,-500.0,0.00013698,2]
[423746562,1780375845000,-500.0,0.00013698,2]
[423746559,1780375845000,-500.0,0.00013698,2]
[423746563,1780375845000,-502.26612828,0.00013698,2]
[423746574,1780375845000,-500.0,0.00013698,2]
[423746571,1780375845000,-500.0,0.00013698,2]
[423746567,1780375845000,-497.75911,0.00013698,2]
[423746564,1780375845000,-500.0,0.00013698,2]
[423746576,1780375845000,-500.0,0.00013698,2]
[423746575,1780375845000,-500.0,0.00013698,2]
[423746572,1780375845000,-500.0,0.00013698,2]
[423746573,1780375845000,-500.0,0.00013698,2]
[423746590,1780375845000,-500.0,0.00013698,2]
[423746596,1780375845000,-500.0,0.00013698,2]
[423746598,1780375845000,-500.0,0.00013698,2]
[423746614,1780375845000,-500.0,0.00013698,2]
[423746619,1780375845000,-500.0,0.00013698,2]
[423746621,1780375845000,-501.22979426,0.00013698,2]
[423746622,1780375845000,-601.92,0.00013698,2]
[423746623,1780375845000,-500.0,0.00013698,2]
[423746624,1780375845000,-500.0,0.00013698,2]
[423746626,1780375845000,-76.89843724,0.00013698,2]
[423746625,1780375845000,-423.10156276,0.00013698,2]
[423746628,1780375845000,-500.0,0.00013698,2]
[423746629,1780375845000,-500.0,0.00013698,2]
[423746620,1780375845000,-500.0,0.00013698,2]
[423746627,1780375845000,-500.0,0.00013698,2]
[423746630,1780375845000,-110.21722623,0.00013698,2]
[423746632,1780375845000,-501.65799967,0.00013698,2]
[423746631,1780375845000,-389.78277377,0.00013698,2]
[423746633,1780375845000,-424.83837782,0.00013698,2]
[423746593,1780375845000,-465.14105706,0.00013698,2]
[423746610,1780375845000,-172.59609035,0.00013698,2]
[423746612,1780375845000,-500.53829371,0.00013698,2]
[423746611,1780375845000,-327.40390965,0.00013698,2]
[423746613,1780375845000,-500.0,0.00013698,2]
[423746597,1780375845000,-500.0,0.00013698,2]
[423746595,1780375845000,-500.63273227,0.00013698,2]
[423746594,1780375845000,-500.0,0.00013698,2]
[423746601,1780375845000,-500.0,0.00013698,2]
[423746599,1780375845000,-500.55317622,0.00013698,2]
[423746604,1780375845000,-500.0,0.00013698,2]
[423746602,1780375845000,-500.0,0.00013698,2]
[423746615,1780375845000,-500.0,0.00013698,2]
[423746603,1780375845000,-500.0,0.00013698,2]
[423746600,1780375845000,-500.0,0.00013698,2]
[423746608,1780375845000,-500.0,0.00013698,2]
[423746616,1780375845000,-500.58643962,0.00013698,2]
[423746609,1780375845000,-500.0,0.00013698,2]
[423746607,1780375845000,-500.0,0.00013698,2]
[423746605,1780375845000,-500.0,0.00013698,2]
[423746618,1780375845000,-500.0,0.00013698,2]
[423746617,1780375845000,-500.0,0.00013698,2]
[423746606,1780375845000,-500.0,0.00013698,2]
[423746651,1780375846000,-75.16162218,0.00013698,2]
[423746655,1780375846000,-79.0143813,0.00013698,2]
[423746654,1780375846000,-500.0,0.00013698,2]
[423746653,1780375846000,-623.79062059,0.00013698,2]
[423746656,1780375846000,-420.9856187,0.00013698,2]
[423746652,1780375846000,-500.0,0.00013698,2]
[423746660,1780375846000,-500.0,0.00013698,2]
[423746658,1780375846000,-500.0,0.00013698,2]
[423746663,1780375846000,-450.06784296,0.00013698,2]
[423746662,1780375846000,-500.0,0.00013698,2]
[423746659,1780375846000,-473.88026897,0.00013698,2]
[423746661,1780375846000,-500.0,0.00013698,2]
[423746657,1780375846000,-500.0,0.00013698,2]
[423746664,1780375860000,200000.0,0.0002283,30]
[423746665,1780375867000,200000.0,0.0002283,30]
[423746666,1780375880000,200000.0,0.0002283,30]
[423746667,1780375884000,200000.0,0.0002283,30]
[423746668,1780375902000,199996.1,0.0002283,30]
[423746672,1780375998000,70000.0,0.0002283,30]
[423746673,1780376029000,59083.88608415,0.00022603,120]
[423746683,1780376662000,-2527.28599099,9.716e-05,2]
[423746714,1780377032000,-155.73597092,0.00010163,2]
[423746712,1780377032000,-2267.97541564,9.428e-05,2]
[423746713,1780377032000,-300.0,9.618e-05,2]
[423746710,1780377032000,-4594.10581983,9.241e-05,2]
[423746709,1780377032000,-405.89418017,9.241e-05,2]
[423746711,1780377032000,-5000.0,9.334e-05,2]
[423746779,1780377041000,-300.0,0.00011065,2]
[423746778,1780377041000,-267.0,0.0001058,2]
[423746777,1780377041000,-262.06348148,0.00010163,2]
[423746780,1780377041000,-300.0,0.00011065,2]
[423746782,1780377041000,-184.34704371,0.00011065,2]
[423746781,1780377041000,-300.0,0.00011065,2]
[423746853,1780377044000,-300.0,0.00011065,2]
[423746851,1780377044000,-300.0,0.00011065,2]
[423746849,1780377044000,-115.65295629,0.00011065,2]
[423746855,1780377044000,-25.82704371,0.00011065,2]
[423746974,1780377046000,-2190.2869335,0.00013424,2]
[423746976,1780377046000,-232.597,0.00013637,2]
[423746971,1780377046000,-185.341,0.00013259,2]
[423746969,1780377046000,-720.0,0.00012414,2]
[423746970,1780377046000,-152.0,0.0001295,7]
[423746968,1780377046000,-276.27223384,0.00012314,2]
[423746967,1780377046000,-600.0,0.00011285,2]
[423746966,1780377046000,-1651.3295502,0.00011152,2]
[423746963,1780377046000,-159.82163363,0.00011065,2]
[423746965,1780377046000,-300.0,0.00011065,2]
[423746959,1780377046000,-300.0,0.00011065,2]
[423746962,1780377046000,-300.0,0.00011065,2]
[423746961,1780377046000,-300.0,0.00011065,2]
[423746960,1780377046000,-300.0,0.00011065,2]
[423746958,1780377046000,-300.0,0.00011065,2]
[423746957,1780377046000,-205.97835629,0.00011065,2]
[423746956,1780377046000,-94.02164371,0.00011065,2]
[423746955,1780377046000,-274.17295629,0.00011065,2]
[423746973,1780377046000,-1022.3222844,0.00013344,2]
[423746964,1780377046000,-140.17836637,0.00011065,2]
[423746972,1780377046000,-444.0,0.00013259,2]
[423746996,1780377046000,-167.33506183,0.00013698,2]
[423746975,1780377046000,-20020.77960547,0.00013598,2]
[423746977,1780377046000,-1415.0,0.00013637,2]
[423746997,1780377046000,-500.0,0.00013698,2]
[423746995,1780377046000,-620.68813596,0.00013698,2]
[423746994,1780377046000,-505.68273601,0.00013698,2]
[423746990,1780377046000,-502.77361956,0.00013698,2]
[423746991,1780377046000,-500.0,0.00013698,2]
[423746992,1780377046000,-409.42596879,0.00013698,2]
[423746989,1780377046000,-500.0,0.00013698,2]
[423746988,1780377046000,-500.0,0.00013698,2]
[423746993,1780377046000,-240.28646248,0.00013698,2]
[423746986,1780377046000,-500.0,0.00013698,2]
[423746985,1780377046000,-500.0,0.00013698,2]
[423746984,1780377046000,-500.0,0.00013698,2]
[423746980,1780377046000,-1836.0,0.00013637,2]
[423746981,1780377046000,-864.0,0.00013655,2]
[423746982,1780377046000,-272.44428336,0.00013697,2]
[423746983,1780377046000,-500.0,0.00013698,2]
[423746979,1780377046000,-2206.0,0.00013637,2]
[423746978,1780377046000,-3630.0,0.00013637,2]
[423746987,1780377046000,-505.1595236,0.00013698,2]
[423747041,1780377047000,-500.0,0.00013698,2]
[423747044,1780377047000,-502.28551429,0.00013698,2]
[423747042,1780377047000,-500.0,0.00013698,2]
[423747040,1780377047000,-500.0,0.00013698,2]
[423747038,1780377047000,-523.66,0.00013698,2]
[423747036,1780377047000,-503.85878482,0.00013698,2]
[423747033,1780377047000,-500.0,0.00013698,2]
[423747039,1780377047000,-501.2303141,0.00013698,2]
[423747035,1780377047000,-500.0,0.00013698,2]
[423747034,1780377047000,-481.3088944,0.00013698,2]
[423747032,1780377047000,-501.40823229,0.00013698,2]
[423747043,1780377047000,-500.0,0.00013698,2]
[423747037,1780377047000,-500.0,0.00013698,2]
[423747045,1780377047000,-500.0,0.00013698,2]
[423747058,1780377047000,-500.0,0.00013698,2]
[423747049,1780377047000,-501.98574426,0.00013698,2]
[423747052,1780377047000,-500.0,0.00013698,2]
[423747046,1780377047000,-500.0,0.00013698,2]
[423747048,1780377047000,-500.0,0.00013698,2]
[423747050,1780377047000,-500.0,0.00013698,2]
[423747054,1780377047000,-503.29532397,0.00013698,2]
[423747053,1780377047000,-500.0,0.00013698,2]
[423747051,1780377047000,-501.91148756,0.00013698,2]
[423747056,1780377047000,-500.97654111,0.00013698,2]
[423747031,1780377047000,-500.0,0.00013698,2]
[423747059,1780377047000,-500.0,0.00013698,2]
[423747055,1780377047000,-473.88026897,0.00013698,2]
[423747057,1780377047000,-503.14862365,0.00013698,2]
[423747061,1780377047000,-500.0,0.00013698,2]
[423747047,1780377047000,-501.41523911,0.00013698,2]
[423747030,1780377047000,-502.98395722,0.00013698,2]
[423747019,1780377047000,-500.0,0.00013698,2]
[423747029,1780377047000,-500.0,0.00013698,2]
[423746999,1780377047000,-503.80126453,0.00013698,2]
[423747000,1780377047000,-2976.2,0.00013698,2]
[423747001,1780377047000,-500.0,0.00013698,2]
[423747002,1780377047000,-500.0,0.00013698,2]
[423747004,1780377047000,-502.72837801,0.00013698,2]
[423747005,1780377047000,-407.82661568,0.00013698,2]
[423747003,1780377047000,-500.0,0.00013698,2]
[423747006,1780377047000,-500.0,0.00013698,2]
[423747007,1780377047000,-500.0,0.00013698,2]
[423747010,1780377047000,-3198.43,0.00013698,2]
[423747008,1780377047000,-500.0,0.00013698,2]
[423747009,1780377047000,-500.0,0.00013698,2]
[423747011,1780377047000,-500.0,0.00013698,2]
[423747012,1780377047000,-334.21920539,0.00013698,2]
[423747014,1780377047000,-502.07412321,0.00013698,2]
[423747013,1780377047000,-500.0,0.00013698,2]
[423747016,1780377047000,-500.0,0.00013698,2]
[423747015,1780377047000,-501.61812701,0.00013698,2]
[423747018,1780377047000,-513.26498698,0.00013698,2]
[423747017,1780377047000,-500.0,0.00013698,2]
[423747020,1780377047000,-500.0,0.00013698,2]
[423747060,1780377047000,-500.0,0.00013698,2]
[423747021,1780377047000,-500.0,0.00013698,2]
[423747024,1780377047000,-500.0,0.00013698,2]
[423747022,1780377047000,-500.0,0.00013698,2]
[423747023,1780377047000,-500.0,0.00013698,2]
[423747025,1780377047000,-525.67645992,0.00013698,2]
[423747027,1780377047000,-500.0,0.00013698,2]
[423747026,1780377047000,-500.0,0.00013698,2]
[423747028,1780377047000,-500.0,0.00013698,2]
[423747063,1780377047000,-500.0,0.00013698,2]
[423746998,1780377047000,-503.58362914,0.00013698,2]
[423747062,1780377047000,-500.0,0.00013698,2]
[423747099,1780377047000,-500.0,0.00013698,2]
[423747100,1780377047000,-830.38,0.00013698,2]
[423747102,1780377047000,-830.38,0.00013698,2]
[423747101,1780377047000,-535.24221407,0.00013698,2]
[423747103,1780377047000,-830.38,0.00013698,2]
[423747105,1780377047000,-830.38,0.00013698,2]
[423747107,1780377047000,-830.38,0.00013698,2]
[423747104,1780377047000,-830.38,0.00013698,2]
[423747108,1780377047000,-500.0,0.00013698,2]
[423747106,1780377047000,-830.38,0.00013698,2]
[423747109,1780377047000,-830.38,0.00013698,2]
[423747110,1780377047000,-830.38,0.00013698,2]
[423747113,1780377047000,-830.38,0.00013698,2]
[423747112,1780377047000,-830.38,0.00013698,2]
[423747097,1780377047000,-830.38,0.00013698,2]
[423747111,1780377047000,-830.38,0.00013698,2]
[423747115,1780377047000,-500.0,0.00013698,2]
[423747117,1780377047000,-501.92564138,0.00013698,2]
[423747116,1780377047000,-500.0,0.00013698,2]
[423747121,1780377047000,-500.0,0.00013698,2]
[423747119,1780377047000,-500.0,0.00013698,2]
[423747122,1780377047000,-511.37630302,0.00013698,2]
[423747120,1780377047000,-263.54,0.00013698,2]
[423747124,1780377047000,-513.59554173,0.00013698,2]
[423747126,1780377047000,-722.4,0.00013698,2]
[423747123,1780377047000,-500.0,0.00013698,2]
[423747125,1780377047000,-722.4,0.00013698,2]
[423747127,1780377047000,-722.4,0.00013698,2]
[423747128,1780377047000,-722.4,0.00013698,2]
[423747064,1780377047000,-500.0,0.00013698,2]
[423747114,1780377047000,-830.38,0.00013698,2]
[423747098,1780377047000,-830.38,0.00013698,2]
[423747118,1780377047000,-500.0,0.00013698,2]
[423747092,1780377047000,-501.49156587,0.00013698,2]
[423747096,1780377047000,-500.0,0.00013698,2]
[423747066,1780377047000,-500.0,0.00013698,2]
[423747068,1780377047000,-500.0,0.00013698,2]
[423747065,1780377047000,-500.0,0.00013698,2]
[423747070,1780377047000,-500.0,0.00013698,2]
[423747069,1780377047000,-391.72350453,0.00013698,2]
[423747072,1780377047000,-501.82477352,0.00013698,2]
[423747071,1780377047000,-539.16398927,0.00013698,2]
[423747075,1780377047000,-502.83150508,0.00013698,2]
[423747074,1780377047000,-534.27,0.00013698,2]
[423747076,1780377047000,-509.81109017,0.00013698,2]
[423747079,1780377047000,-500.0,0.00013698,2]
[423747067,1780377047000,-500.0,0.00013698,2]
[423747078,1780377047000,-501.80990217,0.00013698,2]
[423747081,1780377047000,-500.0,0.00013698,2]
[423747073,1780377047000,-501.29582458,0.00013698,2]
[423747080,1780377047000,-500.0,0.00013698,2]
[423747095,1780377047000,-500.0,0.00013698,2]
[423747077,1780377047000,-500.98202536,0.00013698,2]
[423747090,1780377047000,-504.89469164,0.00013698,2]
[423747093,1780377047000,-501.67990203,0.00013698,2]
[423747091,1780377047000,-501.05109118,0.00013698,2]
[423747094,1780377047000,-506.80904439,0.00013698,2]
[423747088,1780377047000,-502.4299187,0.00013698,2]
[423747089,1780377047000,-500.0,0.00013698,2]
[423747087,1780377047000,-500.0,0.00013698,2]
[423747086,1780377047000,-500.0,0.00013698,2]
[423747084,1780377047000,-500.93950994,0.00013698,2]
[423747085,1780377047000,-500.0,0.00013698,2]
[423747083,1780377047000,-500.0,0.00013698,2]
[423747082,1780377047000,-505.08615994,0.00013698,2]
[423747157,1780377048000,-501.16940814,0.00013698,2]
[423747151,1780377048000,-500.0,0.00013698,2]
[423747153,1780377048000,-503.8518325,0.00013698,2]
[423747154,1780377048000,-507.12967239,0.00013698,2]
[423747155,1780377048000,-500.0,0.00013698,2]
[423747152,1780377048000,-500.0,0.00013698,2]
[423747147,1780377048000,-500.0,0.00013698,2]
[423747156,1780377048000,-500.0,0.00013698,2]
[423747163,1780377048000,-500.0,0.00013698,2]
[423747159,1780377048000,-161.88534425,0.00013698,2]
[423747160,1780377048000,-496.78041631,0.00013698,2]
[423747164,1780377048000,-506.68912233,0.00013698,2]
[423747162,1780377048000,-502.80154379,0.00013698,2]
[423747161,1780377048000,-500.0,0.00013698,2]
[423747165,1780377048000,-500.0,0.00013698,2]
[423747146,1780377048000,-503.00821683,0.00013698,2]
[423747158,1780377048000,-504.45224109,0.00013698,2]
[423747148,1780377048000,-500.0,0.00013698,2]
[423747133,1780377048000,-722.4,0.00013698,2]
[423747150,1780377048000,-500.0,0.00013698,2]
[423747168,1780377048000,-500.0,0.00013698,2]
[423747129,1780377048000,-722.4,0.00013698,2]
[423747130,1780377048000,-722.4,0.00013698,2]
[423747131,1780377048000,-722.4,0.00013698,2]
[423747136,1780377048000,-501.65830896,0.00013698,2]
[423747132,1780377048000,-722.4,0.00013698,2]
[423747134,1780377048000,-722.4,0.00013698,2]
[423747135,1780377048000,-722.4,0.00013698,2]
[423747137,1780377048000,-722.4,0.00013698,2]
[423747139,1780377048000,-722.4,0.00013698,2]
[423747141,1780377048000,-722.4,0.00013698,2]
[423747138,1780377048000,-722.4,0.00013698,2]
[423747140,1780377048000,-500.0,0.00013698,2]
[423747142,1780377048000,-500.0,0.00013698,2]
[423747143,1780377048000,-506.86951178,0.00013698,2]
[423747145,1780377048000,-501.180533,0.00013698,2]
[423747144,1780377048000,-501.88210566,0.00013698,2]
[423747149,1780377048000,-510.90609484,0.00013698,2]
[423747167,1780377048000,-504.31968584,0.00013698,2]
[423747166,1780377048000,-506.71103398,0.00013698,2]
[423747169,1780377048000,-501.26300786,0.00013698,2]
[423747189,1780377048000,-505.87443944,0.00013698,2]
[423747194,1780377048000,-500.0,0.00013698,2]
[423747199,1780377048000,-500.0,0.00013698,2]
[423747195,1780377048000,-503.41350608,0.00013698,2]
[423747193,1780377048000,-501.90871201,0.00013698,2]
[423747197,1780377048000,-501.75089028,0.00013698,2]
[423747196,1780377048000,-500.0,0.00013698,2]
[423747200,1780377048000,-503.07946886,0.00013698,2]
[423747198,1780377048000,-502.64697043,0.00013698,2]
[423747201,1780377048000,-512.05672816,0.00013698,2]
[423747203,1780377048000,-500.0,0.00013698,2]
[423747204,1780377048000,-69.72406411,0.00013698,2]
[423747205,1780377048000,-437.37023566,0.00013698,2]
[423747207,1780377048000,-768.32,0.00013698,2]
[423747206,1780377048000,-500.0,0.00013698,2]
[423747208,1780377048000,-423.69352188,0.00013698,2]
[423747174,1780377048000,-500.0,0.00013698,2]
[423747191,1780377048000,-359.54259762,0.00013698,2]
[423747192,1780377048000,-501.60951739,0.00013698,2]
[423747202,1780377048000,-505.13965159,0.00013698,2]
[423747187,1780377048000,-504.83842628,0.00013698,2]
[423747173,1780377048000,-500.0,0.00013698,2]
[423747171,1780377048000,-507.73952637,0.00013698,2]
[423747172,1780377048000,-500.0,0.00013698,2]
[423747176,1780377048000,-528.81931557,0.00013698,2]